bitfinex/quotes_SOLUSD_20250805
["timestamp","ask_amount","ask_price","bid_price","bid_amount"]
[1754354841463,47.31020189,169.49,169.46,9.03045346]
[1754354841773,41.41,169.49,169.47,9.69045346]
[1754354841950,41.41,169.49,169.48,9.03045346]
[1754354842263,41.41,169.49,169.48,9.69045346]
[1754354843042,41.41,169.49,169.48,0.66]
[1754354843383,41.41,169.49,169.48,9.69045346]
[1754354843736,47.3100531,169.49,169.48,0.66]
[1754354843940,47.3100531,169.49,169.48,9.69045346]
[1754354844172,41.41,169.49,169.48,9.69045346]
[1754354844476,41.41,169.49,169.48,0.66]
[1754354844662,41.41,169.49,169.48,9.03045346]
[1754354845650,47.3100531,169.49,169.48,9.03045346]
[1754354845975,0.03,169.49,169.45,15.24837714]
[1754354846303,0.03,169.49,169.47,9.03045346]
[1754354846873,0.03,169.49,169.47,9.69045346]
[1754354847166,0.03,169.49,169.48,0.66]
[1754354847542,6.5800531,169.49,169.45,0.14216157]
[1754354847757,41.36,169.48,169.46,9.03045346]
[1754354847959,47.26046257,169.48,169.46,9.03045346]
[1754354849766,41.36,169.48,169.46,9.03045346]
[1754354850178,41.36,169.48,169.46,9.72045346]
[1754354850885,47.26045306,169.48,169.46,9.03045346]
[1754354852975,47.26045306,169.48,169.45,41.24837714]
[1754354852976,47.26045306,169.48,169.45,26.0]
[1754354853172,0.68,169.47,169.45,26.0]
[1754354853480,47.9410976,169.46,169.43,0.2]
[1754354853662,47.9410976,169.46,169.43,9.23045346]
[1754354854060,0.03,169.49,169.45,9.03045346]
[1754354854271,41.36,169.48,169.46,9.72045346]
[1754354854459,41.36,169.48,169.45,35.03045346]
[1754354854652,0.68,169.47,169.45,26.0]
[1754354854873,41.36,169.46,169.45,26.0]
[1754354855542,47.2610976,169.46,169.45,26.0]
[1754354855745,47.2610976,169.46,169.43,9.92045346]
[1754354855746,47.9410976,169.46,169.43,9.92045346]
[1754354855946,47.2610976,169.46,169.43,26.2]
[1754354856148,0.68,169.45,169.43,26.2]
[1754354856368,41.36,169.44,169.43,26.2]
[1754354856575,41.36,169.44,169.43,35.92045346]
[1754354858075,41.36,169.44,169.43,51.1688306]
[1754354858462,41.36,169.44,169.43,35.23045346]
[1754354858784,41.36,169.44,169.43,26.2]
[1754354860779,41.36,169.44,169.43,35.92045346]
[1754354862883,41.36,169.46,169.43,35.92045346]
[1754354863060,41.36,169.46,169.44,9.72045346]
[1754354864963,47.2611536,169.46,169.44,9.72045346]
[1754354865269,47.2611536,169.46,169.44,9.03045346]
[1754354865592,47.9411536,169.46,169.44,9.03045346]
[1754354865973,47.9411536,169.46,169.43,35.23045346]
[1754354866897,47.2611536,169.46,169.43,35.92045346]
[1754354868391,47.9411536,169.46,169.43,35.23045346]
[1754354868769,47.2611536,169.46,169.43,35.23045346]
[1754354868972,0.68,169.45,169.43,26.2]
[1754354869182,42.04,169.44,169.43,26.2]
[1754354869990,47.94179414,169.44,169.43,26.2]
[1754354870973,47.26179414,169.44,169.43,26.2]
[1754354871771,41.36,169.44,169.43,35.92045346]
[1754354871975,41.36,169.45,169.43,35.92045346]
[1754354872177,41.36,169.45,169.43,35.23045346]
[1754354872491,41.36,169.45,169.44,9.72045346]
[1754354872691,41.36,169.47,169.44,9.72045346]
[1754354872878,41.36,169.47,169.45,9.72045346]
[1754354873191,41.36,169.47,169.46,9.03045346]
[1754354873374,41.36,169.47,169.46,9.72045346]
[1754354873773,41.36,169.47,169.46,26.0]
[1754354873976,42.04,169.47,169.46,26.0]
[1754354874378,42.04,169.47,169.43,0.2]
[1754354874584,42.04,169.47,169.44,9.03045346]
[1754354874794,47.94074939,169.47,169.44,9.03045346]
[1754354875992,47.94074939,169.47,169.45,9.03045346]
[1754354876793,47.26074939,169.47,169.45,9.03045346]
[1754354876989,47.94074939,169.47,169.44,9.03045346]
[1754354877398,47.26074939,169.47,169.44,9.03045346]
[1754354877598,0.68,169.46,169.44,9.03045346]
[1754354877800,41.36,169.45,169.44,9.03045346]
[1754354878830,0.03,169.49,169.46,0.14216157]
[1754354879030,0.03,169.49,169.48,24.2788306]
[1754354879381,0.03,169.49,169.48,24.9988306]
[1754354880329,0.03,169.49,169.48,24.2788306]
[1754354881507,0.03,169.49,169.48,24.9988306]
[1754354881930,0.03,169.49,169.48,30.89923182]
[1754354884537,1e-08,169.51,169.5,41.24837714]
[1754354884849,0.03,169.59,169.55,15.10621557]
[1754354885046,0.03,169.59,169.58,9.03045346]
[1754354885339,0.03,169.59,169.58,50.2788306]
[1754354885547,0.03,169.59,169.58,39.92620586]
[1754354886154,0.03,169.59,169.58,42.9354675]
[1754354887313,0.03,169.59,169.58,39.92620586]
[1754354888755,0.03,169.59,169.58,15.24837714]
[1754354888950,0.03,169.59,169.58,65.6788306]
[1754354889343,0.03,169.59,169.58,65.53666903]
[1754354889543,0.03,169.59,169.58,91.53666903]
[1754354892640,0.72,169.59,169.58,35.03045346]
[1754354893055,0.72,169.59,169.58,26.0]
[1754354893726,0.03,169.59,169.58,50.13666903]
[1754354893922,0.03,169.59,169.58,41.10621557]
[1754354894127,6.61657409,169.59,169.55,18.06090746]
[1754354894369,0.69,169.58,169.56,26.0]
[1754354894646,5.92657409,169.59,169.56,35.03045346]
[1754354894647,0.69,169.57,169.56,35.03045346]
[1754354894849,0.72,169.59,169.56,35.03045346]
[1754354895060,5.92665011,169.59,169.56,35.03045346]
[1754354895270,6.61665011,169.59,169.56,35.03045346]
[1754354895834,0.69,169.58,169.56,35.03045346]
[1754354896730,5.92665011,169.59,169.56,35.03045346]
[1754354896929,0.03,169.59,169.56,35.03045346]
[1754354897150,0.03,169.59,169.56,35.75045346]
[1754354898866,0.03,169.59,169.58,24.13666903]
[1754354899248,0.03,169.59,169.58,24.85666903]
[1754354900342,0.03,169.59,169.58,24.13666903]
[1754354900542,0.72,169.59,169.58,26.0]
[1754354900742,0.03,169.59,169.58,26.0]
[1754354901172,0.03,169.59,169.58,26.72]
[1754354901345,0.03,169.59,169.58,50.85666903]
[1754354901674,0.03,169.59,169.58,41.10621557]
[1754354902346,0.03,169.59,169.58,41.82621557]
[1754354902690,0.03,169.59,169.58,41.10621557]
[1754354905276,0.03,169.59,169.58,50.85666903]
[1754354905577,0.03,169.59,169.58,107.97589804]
[1754354906392,0.03,169.61,169.59,15.24837714]
[1754354906595,0.03,169.61,169.6,100.76928406]
[1754354907377,0.03,169.61,169.6,101.48928406]
[1754354907792,0.03,169.61,169.6,81.97513311]
[1754354907966,10.62928653,169.69,169.65,9.17261503]
[1754354908487,10.62928653,169.69,169.65,9.89261503]
[1754354909194,10.62928653,169.69,169.65,24.9988306]
[1754354910004,10.62928653,169.69,169.65,30.89331925]
[1754354910206,0.03,169.73,169.72,41.10621557]
[1754354910412,0.1,169.79,169.75,41.24837714]
[1754354910580,0.1,169.79,169.75,91.7788306]
[1754354910786,0.1,169.79,169.75,92.4888306]
[1754354911213,0.82,169.79,169.75,50.2788306]
[1754354911705,0.1,169.79,169.75,60.01928406]
[1754354911903,0.1,169.79,169.75,50.9888306]
[1754354912898,0.1,169.79,169.75,56.8798468]
[1754354913291,0.1,169.79,169.75,65.91030026]
[1754354914302,6.61001617,169.78,169.75,91.63666903]
[1754354914505,6.61001617,169.78,169.75,50.2788306]
[1754354914914,0.72,169.78,169.75,50.2788306]
[1754354915520,0.1,169.79,169.75,50.9888306]
[1754354915816,0.1,169.79,169.75,65.91030026]
[1754354917507,0.1,169.79,169.75,56.8798468]
[1754354919693,0.82,169.76,169.75,91.61666903]
[1754354919888,0.82,169.76,169.75,50.13666903]
[1754354920605,0.1,169.76,169.75,50.13666903]
[1754354921397,0.1,169.76,169.75,50.84666903]
[1754354921996,0.1,169.76,169.75,56.8798468]
[1754354922622,0.1,169.76,169.75,50.2788306]
[1754354922825,0.1,169.76,169.75,91.7588306]
[1754354923691,0.1,169.76,169.75,91.61666903]
[1754354923891,0.1,169.76,169.75,91.7588306]
[1754354924493,0.1,169.76,169.75,98.3598468]
[1754354925719,0.1,169.76,169.75,91.7588306]
[1754354927200,0.1,169.76,169.75,92.4688306]
[1754354927520,0.1,169.76,169.75,98.3598468]
[1754354927724,0.1,169.76,169.75,97.6498468]
[1754354928309,0.1,169.76,169.75,91.7588306]
[1754354928617,0.82,169.76,169.75,82.72837714]
[1754354929020,0.82,169.76,169.75,50.2788306]
[1754354929409,0.82,169.76,169.75,41.10621557]
[1754354929606,0.82,169.76,169.75,50.13666903]
[1754354930404,0.82,169.76,169.75,41.10621557]
[1754354930616,0.82,169.76,169.75,50.13666903]
[1754354930815,0.1,169.76,169.75,50.13666903]
[1754354932504,0.1,169.76,169.75,41.10621557]
[1754354932735,0.1,169.76,169.75,50.13666903]
[1754354933223,0.82,169.76,169.75,26.0]
[1754354933412,6.71066918,169.76,169.75,26.0]
[1754354933611,6.71066918,169.76,169.69,0.77]
[1754354933827,9.75045346,169.75,169.7,65.55666903]
[1754354934026,0.72,169.74,169.73,26.0]
[1754354934530,5.89171036,169.73,169.7,15.10621557]
[1754354934830,0.72,169.72,169.7,41.10621557]
[1754354935711,0.72,169.74,169.71,9.03045346]
[1754354935917,5.89109048,169.75,169.71,9.74045346]
[1754354936342,0.1,169.76,169.74,9.03045346]
[1754354936642,0.1,169.76,169.75,24.13666903]
[1754354937013,0.1,169.76,169.75,24.2788306]
[1754354937209,0.1,169.76,169.75,24.9888306]
[1754354937524,0.1,169.76,169.75,30.8798468]
[1754354937926,0.1,169.76,169.75,39.91030026]
[1754354938731,0.1,169.76,169.75,24.9888306]
[1754354938943,0.1,169.76,169.75,56.70837714]
[1754354939237,0.1,169.76,169.75,82.70837714]
[1754354939420,0.1,169.76,169.75,91.7388306]
[1754354939944,0.1,169.76,169.75,98.3298468]
[1754354941648,0.1,169.76,169.75,91.7388306]
[1754354942347,0.1,169.76,169.75,97.6298468]
[1754354942545,0.1,169.76,169.75,98.3298468]
[1754354942929,0.1,169.76,169.75,72.3298468]
[1754354943342,0.1,169.76,169.75,63.29939334]
[1754354943642,0.1,169.76,169.75,65.7388306]
[1754354945854,0.1,169.76,169.75,71.6298468]
[1754354946026,0.1,169.76,169.75,72.3298468]
[1754354946346,0.1,169.76,169.75,65.7388306]
[1754354946545,0.1,169.76,169.75,82.70837714]
[1754354946944,0.1,169.76,169.75,72.3298468]
[1754354947832,0.1,169.76,169.75,159.8298468]
[1754354953347,0.79,169.76,169.75,144.20837714]
[1754354953547,0.79,169.76,169.74,15.10621557]
[1754354953756,6.68066918,169.76,169.75,26.0]
[1754354955652,0.79,169.76,169.75,26.0]
[1754354955831,6.68066918,169.76,169.75,26.0]
[1754354956035,0.79,169.76,169.75,26.0]
[1754354956635,6.68066918,169.76,169.75,26.0]
[1754354957166,6.68066918,169.76,169.73,0.06]
[1754354957167,24.7415761,169.76,169.73,0.06]
[1754354957330,9.03045346,169.74,169.73,0.06]
[1754354957676,14.92181672,169.74,169.73,0.06]
[1754354957846,15.61181672,169.74,169.73,0.06]
[1754354962527,15.61181672,169.74,169.71,0.06]
[1754354962528,30.34022487,169.74,169.71,0.06]
[1754354962769,9.03045346,169.72,169.71,0.06]
[1754354963370,9.03045346,169.72,169.69,0.06]
[1754354963371,9.72045346,169.72,169.69,0.06]
[1754354963666,9.03045346,169.7,169.69,0.06]
[1754354964164,15.61320537,169.7,169.69,0.06]
[1754354976569,5.89275191,169.7,169.69,0.76]
[1754354976868,14.92251096,169.72,169.69,0.76]
[1754354977268,14.92251096,169.72,169.7,0.7]
[1754354977472,14.92251096,169.72,169.71,0.7]
[1754354977758,5.8920575,169.72,169.71,0.7]
[1754354978379,14.92251096,169.72,169.71,0.7]
[1754354978565,14.92251096,169.72,169.69,0.76]
[1754354978767,14.92251096,169.72,169.7,0.7]
[1754354979076,14.92251096,169.72,169.69,0.06]
[1754354979077,14.92251096,169.72,169.71,0.7]
[1754354979592,56.32225341,169.73,169.71,0.7]
[1754354979881,47.29179995,169.73,169.71,0.7]
[1754354980091,47.29179995,169.73,169.71,9.73045346]
[1754354980092,41.4,169.73,169.71,9.73045346]
[1754354980264,41.4,169.73,169.72,9.73045346]
[1754354980462,50.55045346,169.76,169.72,9.73045346]
[1754354980666,50.55045346,169.76,169.73,0.7]
[1754354980864,56.44116183,169.76,169.71,35.03045346]
[1754354981055,47.41070837,169.76,169.74,0.7]
[1754354981258,57.13116183,169.76,169.71,26.7]
[1754354981459,57.13116183,169.76,169.72,0.7]
[1754354981768,9.03045346,169.75,169.72,0.7]
[1754354982087,9.72045346,169.75,169.71,26.0]
[1754354982268,9.72045346,169.75,169.71,26.7]
[1754354982473,9.03045346,169.74,169.71,26.7]
[1754354983073,14.9520276,169.74,169.71,26.7]
[1754354984877,5.92157414,169.74,169.72,0.7]
[1754354985077,5.92157414,169.74,169.73,0.7]
[1754354986177,5.92157414,169.74,169.71,26.0]
[1754354986178,5.92157414,169.74,169.71,26.7]
[1754354986358,15.6420276,169.74,169.71,26.0]
[1754354986562,9.03045346,169.73,169.71,26.0]
[1754354986980,9.03045346,169.73,169.71,26.7]
[1754354987475,14.9520276,169.74,169.71,26.7]
[1754354988365,14.9520276,169.74,169.69,87.56]
[1754354988366,9.03045346,169.72,169.69,87.56]
[1754354988580,9.03045346,169.72,169.69,0.06]
[1754354988581,14.92301655,169.71,169.69,0.06]
[1754354988889,9.03045346,169.7,169.69,0.06]
[1754354990769,56.30320537,169.7,169.69,0.06]
[1754354992687,56.99320537,169.7,169.69,0.06]
[1754354993593,56.30320537,169.7,169.69,0.06]
[1754354995488,56.99320537,169.7,169.69,0.06]
[1754354995869,56.30320537,169.7,169.69,0.06]
[1754354996073,56.99320537,169.7,169.69,0.06]
[1754354996285,47.27275191,169.7,169.69,0.06]
[1754354996512,56.30320537,169.7,169.69,0.06]
[1754354998293,15.44840815,169.74,169.69,0.76]
[1754354998483,56.28216382,169.73,169.69,0.76]
[1754354999503,14.92274688,169.72,169.69,0.76]
[1754354999881,50.39045346,169.71,169.69,0.06]
[1754355000080,50.39045346,169.71,169.69,0.76]
[1754355000272,41.36,169.71,169.69,0.06]
[1754355000477,41.36,169.71,169.7,15.80621557]
[1754355000972,41.38,169.73,169.7,15.80621557]
[1754355001186,50.41045346,169.73,169.7,15.80621557]
[1754355001392,50.41045346,169.73,169.69,87.56]
[1754355001393,9.03045346,169.72,169.69,87.56]
[1754355001591,5.89240469,169.71,169.69,88.26]
[1754355003806,5.89213878,169.72,169.69,88.26]
[1754355004012,5.89213878,169.72,169.7,0.7]
[1754355004303,47.27180971,169.73,169.7,0.7]
[1754355004603,56.30226317,169.73,169.7,0.7]
[1754355006517,56.30226317,169.73,169.69,0.06]
[1754355006807,56.30226317,169.73,169.71,0.7]
[1754355007705,41.38,169.73,169.72,0.7]
[1754355007921,0.03,169.74,169.72,0.7]
[1754355008118,0.03,169.74,169.73,0.7]
[1754355009327,0.03,169.74,169.71,9.03045346]
[1754355009636,0.03,169.74,169.72,0.7]
[1754355010203,0.03,169.74,169.73,0.7]
[1754355010814,0.03,169.74,169.73,24.83666903]
[1754355011845,0.03,169.74,169.73,30.72837939]
[1754355012002,0.03,169.74,169.73,30.87054096]
[1754355012202,0.03,169.74,169.73,56.87054096]
[1754355012401,0.03,169.74,169.73,30.87054096]
[1754355014433,0.1,169.76,169.73,54.63027032]
[1754355014639,0.1,169.76,169.75,33.16712249]
[1754355014805,0.1,169.76,169.75,24.2788306]
[1754355014997,0.1,169.76,169.75,24.9788306]
[1754355016706,0.1,169.76,169.75,30.8698468]
[1754355018912,0.1,169.76,169.75,24.9788306]
[1754355019424,0.79,169.76,169.75,15.10621557]
[1754355019615,0.79,169.76,169.75,26.0]
[1754355020029,0.79,169.76,169.7,0.06]
[1754355020030,15.71112264,169.76,169.7,0.06]
[1754355020330,9.03045346,169.73,169.7,0.06]
[1754355020534,14.92217946,169.73,169.7,0.06]
[1754355020712,0.69,169.72,169.7,0.06]
[1754355020914,0.69,169.72,169.71,26.0]
[1754355021507,9.72045346,169.72,169.7,26.06]
[1754355022440,9.72045346,169.71,169.7,0.06]
[1754355022614,15.61285815,169.71,169.7,0.06]
[1754355028624,6.58240469,169.71,169.7,0.06]
[1754355028920,15.61285815,169.71,169.7,0.06]
[1754355040727,39.37432333,169.71,169.67,0.06]
[1754355041049,18.06090692,169.68,169.67,1e-08]
[1754355041648,18.72090692,169.68,169.67,1e-08]
[1754355042351,24.6143534,169.68,169.67,1e-08]
[1754355044633,6.55344648,169.68,169.67,1e-08]
[1754355044822,14.92389994,169.68,169.67,1e-08]
[1754355045244,56.28389994,169.68,169.67,0.70000001]
[1754355045969,41.36,169.68,169.67,0.70000001]
[1754355046253,5.89321769,169.69,169.67,0.70000001]
[1754355046254,5.89309918,169.69,169.67,0.70000001]
[1754355046567,56.28322836,169.7,169.67,0.70000001]
[1754355046853,50.39045346,169.7,169.67,0.70000001]
[1754355047032,9.03045346,169.69,169.67,1e-08]
[1754355047225,9.03045346,169.68,169.67,1e-08]
[1754355047638,9.03045346,169.69,169.67,0.70000001]
[1754355047847,9.03045346,169.69,169.68,0.7]
[1754355048044,9.69045346,169.69,169.67,1e-08]
[1754355048242,61.98463777,169.7,169.67,1e-08]
[1754355048243,14.92389994,169.68,169.67,1e-08]
[1754355048446,15.58389994,169.68,169.67,1e-08]
[1754355051246,24.6143534,169.68,169.67,1e-08]
[1754355053466,23.9543534,169.68,169.67,1e-08]
[1754355053830,24.6143534,169.68,169.67,1e-08]
[1754355056041,65.9743534,169.68,169.67,1e-08]
[1754355061158,65.9743534,169.68,169.6,26.0]
[1754355061159,110.17520204,169.68,169.6,0.69]
[1754355061365,9.03045346,169.61,169.6,0.69]
[1754355061662,9.03045346,169.61,169.56,102.80621557]
[1754355061663,50.39045346,169.61,169.58,0.69]
[1754355061845,9.03045346,169.59,169.58,0.69]
[1754355062174,50.39045346,169.59,169.56,0.89]
[1754355062340,9.03045346,169.57,169.56,0.2]
[1754355062547,50.39045346,169.57,169.56,0.2]
[1754355062874,51.09045346,169.57,169.56,0.2]
[1754355063052,56.98772302,169.57,169.56,0.2]
[1754355066248,56.28772302,169.57,169.56,0.2]
[1754355068778,56.98772302,169.57,169.56,0.2]
[1754355069470,56.28772302,169.57,169.56,0.2]
[1754355069774,56.28772302,169.57,169.56,0.89]
[1754355071154,56.28772302,169.57,169.56,0.2]
[1754355075165,56.98772302,169.57,169.56,0.2]
[1754355076373,26.0,169.55,169.53,0.2]
[1754355076584,59.44090692,169.54,169.53,0.2]
[1754355076774,60.14090692,169.54,169.53,0.2]
[1754355077377,66.03922,169.54,169.53,0.2]
[1754355077572,65.33922,169.54,169.53,1e-08]
[1754355077771,66.03922,169.54,169.53,1e-08]
[1754355082859,66.03922,169.54,169.52,1e-08]
[1754355083060,44.76090692,169.53,169.52,1e-08]
[1754355083498,26.0,169.5,169.48,0.06]
[1754355083800,50.41045346,169.49,169.48,0.06]
[1754355084166,9.03045346,169.49,169.48,0.75]
[1754355084687,50.41045346,169.49,169.48,0.75]
[1754355085194,56.31050656,169.49,169.48,0.75]
[1754355085493,41.38,169.49,169.48,0.75]
[1754355085866,9.95803143,169.54,169.49,26.0]
[1754355086093,18.98848489,169.54,169.5,9.72045346]
[1754355086293,41.4,169.53,169.5,9.03045346]
[1754355086472,41.4,169.53,169.51,0.69]
[1754355087186,47.29894648,169.53,169.51,0.69]
[1754355087569,41.4,169.53,169.51,0.69]
[1754355088005,9.95803143,169.54,169.51,9.72045346]
[1754355088169,9.95803143,169.54,169.52,9.03045346]
[1754355088368,9.95803143,169.54,169.53,0.69]
[1754355093786,9.95803143,169.54,169.53,15.61911446]
[1754355094692,9.95803143,169.54,169.53,30.8674916]
[1754355096593,9.95803143,169.54,169.53,30.9274916]
[1754355096776,9.95803143,169.54,169.53,25.0288306]
[1754355096977,9.95803143,169.54,169.53,30.9274916]
[1754355097303,9.95803143,169.54,169.53,56.9274916]
[1754355099314,9.95803143,169.54,169.53,26.06]
[1754355099815,9.95803143,169.54,169.53,50.91666903]
[1754355100120,9.95803143,169.54,169.53,41.88621557]
[1754355100414,60.36848489,169.54,169.53,0.06]
[1754355100615,61.05848489,169.54,169.53,0.06]
[1754355100906,60.36848489,169.54,169.53,0.06]
[1754355102509,51.33803143,169.54,169.53,0.06]
[1754355103321,60.36848489,169.54,169.53,0.06]
[1754355103612,51.33803143,169.54,169.53,0.06]
[1754355105188,51.33803143,169.54,169.53,0.78]
[1754355105375,61.05848489,169.54,169.53,0.06]
[1754355106493,60.36848489,169.54,169.53,0.06]
[1754355106881,51.33803143,169.54,169.53,0.06]
[1754355107081,51.33803143,169.54,169.53,0.78]
[1754355107309,9.95803143,169.54,169.53,0.78]
[1754355108099,9.95803143,169.54,169.53,6.678661]
[1754355110325,9.95803143,169.54,169.53,30.81533003]
[1754355111209,9.95803143,169.54,169.53,30.9574916]
[1754355112613,9.95803143,169.54,169.53,5.958661]
[1754355113953,9.95803143,169.54,169.53,6.678661]
[1754355114109,9.95803143,169.54,169.53,15.70911446]
[1754355116109,9.95803143,169.54,169.53,30.81533003]
[1754355117236,9.95803143,169.54,169.53,21.78487657]
[1754355118345,9.98803143,169.54,169.53,21.78487657]
[1754355118712,9.98803143,169.54,169.53,30.81533003]
[1754355120522,9.98803143,169.54,169.53,21.78487657]
[1754355120724,9.98803143,169.54,169.53,21.06487657]
[1754355120934,9.98803143,169.54,169.53,21.78487657]
[1754355121128,10.68803143,169.54,169.53,0.06]
[1754355121459,25.61679797,169.54,169.52,0.06]
[1754355121620,51.11045346,169.53,169.52,0.06]
[1754355122646,57.00911446,169.53,169.52,0.06]
[1754355125251,41.38,169.53,169.52,0.06]
[1754355126135,42.08,169.53,169.52,0.06]
[1754355126330,41.38,169.53,169.52,0.06]
[1754355126544,41.38,169.53,169.52,0.78]
[1754355126735,9.98803143,169.54,169.53,5.898661]
[1754355126942,9.98803143,169.54,169.53,6.618661]
[1754355127132,9.98803143,169.54,169.53,0.72]
[1754355127449,9.98803143,169.54,169.53,9.75045346]
[1754355128045,10.68803143,169.54,169.52,0.06]
[1754355128344,41.38,169.53,169.52,0.06]
[1754355128548,41.38,169.53,169.52,0.78]
[1754355129143,41.38,169.53,169.52,0.06]
[1754355131945,9.98803143,169.54,169.52,9.81045346]
[1754355132143,9.98803143,169.54,169.53,0.72]
[1754355132938,9.98803143,169.54,169.53,9.75045346]
[1754355133143,9.98803143,169.54,169.53,0.72]
[1754355133430,9.98803143,169.54,169.52,9.09045346]
[1754355133747,9.98803143,169.54,169.53,9.03045346]
[1754355134454,9.98803143,169.54,169.52,9.81045346]
[1754355134631,9.98803143,169.54,169.52,0.78]
[1754355134950,9.98803143,169.54,169.52,9.09045346]
[1754355135148,0.7,169.53,169.52,0.06]
[1754355135356,42.08,169.53,169.52,26.06]
[1754355135653,41.38,169.53,169.52,26.06]
[1754355136238,41.38,169.53,169.52,0.06]
[1754355136825,42.08,169.53,169.52,0.06]
[1754355137460,41.38,169.53,169.52,0.06]
[1754355137848,42.08,169.53,169.52,0.06]
[1754355139023,41.38,169.53,169.52,0.06]
[1754355139229,51.36803143,169.54,169.52,0.06]
[1754355139430,52.06803143,169.54,169.52,0.06]
[1754355140250,0.7,169.53,169.52,0.06]
[1754355141559,9.73045346,169.53,169.52,0.06]
[1754355142136,0.7,169.53,169.52,0.06]
[1754355145352,6.598661,169.53,169.52,0.06]
[1754355145557,15.62911446,169.53,169.52,0.06]
[1754355146530,5.898661,169.53,169.52,0.06]
[1754355148331,66.29686629,169.54,169.52,0.06]
[1754355148530,57.26641283,169.54,169.52,0.06]
[1754355150046,57.96641283,169.54,169.52,0.06]
[1754355152554,9.73045346,169.53,169.52,0.06]
[1754355154438,15.62911446,169.53,169.52,0.06]
[1754355162069,26.0,169.51,169.5,0.06]
[1754355162374,76.41045346,169.51,169.5,0.06]
[1754355162557,77.11045346,169.51,169.5,0.06]
[1754355163159,83.00981043,169.51,169.5,0.06]
[1754355163361,83.00981043,169.51,169.5,1e-08]
[1754355165258,85.37352743,169.51,169.5,1e-08]
[1754355168672,85.515689,169.51,169.5,1e-08]
[1754355172748,34.26307397,169.51,169.5,0.66000001]
[1754355173081,82.30981043,169.51,169.5,0.66000001]
[1754355173575,82.30981043,169.51,169.5,1e-08]
[1754355173794,73.27935697,169.51,169.5,1e-08]
[1754355173965,83.151972,169.51,169.5,1e-08]
[1754355175557,85.515828,169.51,169.5,1e-08]
[1754355175762,84.67366643,169.51,169.5,1e-08]
[1754355176466,85.37366643,169.51,169.5,1e-08]
[1754355176760,129.76100527,169.51,169.46,0.06]
[1754355176965,9.03045346,169.47,169.46,0.06]
[1754355177166,50.41045346,169.47,169.46,0.06]
[1754355177480,51.11045346,169.47,169.46,0.06]
[1754355177780,51.11045346,169.47,169.46,1e-08]
[1754355177781,57.01120285,169.47,169.46,1e-08]
[1754355177961,57.15336442,169.47,169.46,1e-08]
[1754355178778,61.75470877,169.47,169.46,1e-08]
[1754355180695,61.05470877,169.47,169.46,1e-08]
[1754355180891,61.77470877,169.47,169.46,1e-08]
[1754355181192,0.14216157,169.43,169.42,1e-08]
[1754355181398,26.0,169.4,169.36,0.06]
[1754355181703,51.13045346,169.39,169.38,1e-08]
[1754355182065,50.41045346,169.39,169.38,1e-08]
[1754355182375,50.41045346,169.39,169.36,0.06]
[1754355182376,57.03398967,169.39,169.37,1e-08]
[1754355182574,9.03045346,169.38,169.37,1e-08]
[1754355183181,11.39584746,169.38,169.37,1e-08]
[1754355183767,27.05018567,169.38,169.37,1e-08]
[1754355184409,18.06090692,169.37,169.35,1e-08]
[1754355184575,59.44090692,169.36,169.35,1e-08]
[1754355184766,60.16090692,169.36,169.35,1e-08]
[1754355185671,59.44090692,169.36,169.35,1e-08]
[1754355186072,66.06548887,169.36,169.35,1e-08]
[1754355188300,26.0,169.34,169.33,1e-08]
[1754355188598,76.57261503,169.34,169.28,0.7]
[1754355188900,9.03045346,169.29,169.28,0.7]
[1754355189211,50.43045346,169.29,169.28,0.7]
[1754355190277,56.33747691,169.29,169.28,0.7]